[Event "Titled Tuesday Blitz July 26 Late 2022"]
[White "Sarana, Alexey"]
[Black "Hafiz, Arif Abdul"]
[WhiteFideId "24133795"]
[BlackFideId "7104227"]
[WhiteElo "2666"]
[BlackElo "2198"]
[Result "1-0"]
[Round "07"]
[TimeControl "180+1"]
[Date "2022.07.26"]
[WhiteClock "0:00:03"]
[BlackClock "0:00:12"]

1. c4 {[%clk 0:02:45]}  Nc6 {[%clk 0:03:00]} 2. Nc3 {[%clk 0:02:44]}  e5 {[%clk 0:03:01]} 3. g3 {[%clk 0:02:44]}  Nf6 {[%clk 0:03:00]} 4. Bg2 {[%clk 0:02:43]}  Bb4 {[%clk 0:03:01]} 5. Nd5 {[%clk 0:02:43]}  O-O {[%clk 0:02:59]} 6. e3 {[%clk 0:02:41]}  d6 {[%clk 0:02:56]} 7. Ne2 {[%clk 0:02:39]}  Nxd5 {[%clk 0:02:56]} 8. cxd5 {[%clk 0:02:39]}  Ne7 {[%clk 0:02:57]} 9. O-O {[%clk 0:02:35]}  Ba5 {[%clk 0:02:56]} 10. d4 {[%clk 0:02:34]}  f6 {[%clk 0:02:50]} 11. Bd2 {[%clk 0:02:29]}  Bb6 {[%clk 0:02:49]} 12. Bc3 {[%clk 0:02:24]}  Qe8 {[%clk 0:02:45]} 13. b4 {[%clk 0:02:21]}  Bd7 {[%clk 0:02:36]} 14. a4 {[%clk 0:02:20]}  a5 {[%clk 0:02:37]} 15. bxa5 {[%clk 0:01:53]}  Bxa5 {[%clk 0:02:38]} 16. Bxa5 {[%clk 0:01:54]}  Rxa5 {[%clk 0:02:38]} 17. Nc3 {[%clk 0:01:55]}  Qa8 {[%clk 0:02:37]} 18. Qb1 {[%clk 0:01:36]}  exd4 {[%clk 0:02:22]} 19. exd4 {[%clk 0:01:35]}  Nf5 {[%clk 0:02:22]} 20. Bh3 {[%clk 0:01:27]}  g6 {[%clk 0:02:21]} 21. Re1 {[%clk 0:01:19]}  Qa7 {[%clk 0:02:04]} 22. Qb4 {[%clk 0:01:16]}  Rf7 {[%clk 0:01:59]} 23. Bxf5 {[%clk 0:01:06]}  Bxf5 {[%clk 0:01:55]} 24. Nb5 {[%clk 0:01:03]}  Qb6 {[%clk 0:01:54]} 25. Rac1 {[%clk 0:00:45]}  Ra8 {[%clk 0:01:39]} 26. Qc3 {[%clk 0:00:36]}  Rxa4 {[%clk 0:01:19]} 27. Nxc7 {[%clk 0:00:35]}  Qxd4 {[%clk 0:01:12]} 28. Re8+ {[%clk 0:00:34]}  Rf8 {[%clk 0:00:56]} 29. Qe1 {[%clk 0:00:33]}  Ra2 {[%clk 0:00:37]} 30. Rxf8+ {[%clk 0:00:13]}  Kxf8 {[%clk 0:00:38]} 31. Ne6+ {[%clk 0:00:12]}  Bxe6 {[%clk 0:00:29]} 32. dxe6 {[%clk 0:00:13]}  Qe5 {[%clk 0:00:28]} 33. Qb4 {[%clk 0:00:13]}  Ra1 {[%clk 0:00:22]} 34. Rxa1 {[%clk 0:00:13]}  Qxa1+ {[%clk 0:00:23]} 35. Kg2 {[%clk 0:00:14]}  Qa6 {[%clk 0:00:23]} 36. Qh4 {[%clk 0:00:07]}  Qc6+ {[%clk 0:00:23]} 37. Kg1 {[%clk 0:00:07]}  Qc1+ {[%clk 0:00:20]} 38. Kg2 {[%clk 0:00:07]}  Qc6+ {[%clk 0:00:20]} 39. Kg1 {[%clk 0:00:07]}  Kg7 {[%clk 0:00:21]} 40. Qd4 {[%clk 0:00:05]}  Qc5 {[%clk 0:00:16]} 41. Qa1 {[%clk 0:00:02]}  Qe5 {[%clk 0:00:16]} 42. Qa8 {[%clk 0:00:02]}  Qe1+ {[%clk 0:00:15]} 43. Kg2 {[%clk 0:00:02]}  Qe4+ {[%clk 0:00:16]} 44. Kg1 {[%clk 0:00:03]}  Qb1+ {[%clk 0:00:16]} 45. Kg2 {[%clk 0:00:03]}  Qe4+ {[%clk 0:00:17]} 46. Kg1 {[%clk 0:00:04]}  Qxe6 {[%clk 0:00:17]} 47. Qxb7+ {[%clk 0:00:04]}  Qf7 {[%clk 0:00:17]} 48. Qc6 {[%clk 0:00:05]}  d5 {[%clk 0:00:15]} 49. Qd6 {[%clk 0:00:05]}  Qb7 {[%clk 0:00:15]} 50. h4 {[%clk 0:00:04]}  Qb1+ {[%clk 0:00:15]} 51. Kh2 {[%clk 0:00:04]}  Qe4 {[%clk 0:00:15]} 52. Qd7+ {[%clk 0:00:04]}  Kh6 {[%clk 0:00:16]} 53. Qd8 {[%clk 0:00:05]}  d4 {[%clk 0:00:14]} 54. Qf8+ {[%clk 0:00:02]}  Kh5 {[%clk 0:00:14]} 55. Qxf6 {[%clk 0:00:03]}  Kg4 {[%clk 0:00:12]} 56. f3+ {[%clk 0:00:03]} 1-0


[Site "https://www.chess.com"]

[Event "Titled Tuesday Blitz July 26 Late 2022"]
[White "Schekachikhin, Maksim"]
[Black "Zong, Davis"]
[WhiteFideId "24177830"]
[BlackFideId "30903955"]
[WhiteElo "2239"]
[BlackElo "2061"]
[Result "1-0"]
[Round "07"]
[TimeControl "180+1"]
[Date "2022.07.27"]
[WhiteClock "0:01:12"]
[BlackClock "0:00:03"]

1. d4 {[%clk 0:02:58]}  d5 {[%clk 0:02:59]} 2. Nf3 {[%clk 0:02:57]}  Nf6 {[%clk 0:02:59]} 3. c4 {[%clk 0:02:56]}  c6 {[%clk 0:02:59]} 4. Nc3 {[%clk 0:02:55]}  e6 {[%clk 0:02:59]} 5. Bg5 {[%clk 0:02:54]}  Nbd7 {[%clk 0:02:58]} 6. e3 {[%clk 0:02:54]}  Qa5 {[%clk 0:02:59]} 7. Nd2 {[%clk 0:02:49]}  dxc4 {[%clk 0:02:58]} 8. Bxf6 {[%clk 0:02:48]}  Nxf6 {[%clk 0:02:59]} 9. Nxc4 {[%clk 0:02:48]}  Qc7 {[%clk 0:02:55]} 10. Be2 {[%clk 0:02:47]}  Bd7 {[%clk 0:02:41]} 11. O-O {[%clk 0:02:46]}  c5 {[%clk 0:02:42]} 12. d5 {[%clk 0:02:44]}  b5 {[%clk 0:02:32]} 13. dxe6 {[%clk 0:02:43]}  fxe6 {[%clk 0:02:30]} 14. Nd2 {[%clk 0:02:42]}  Bd6 {[%clk 0:02:29]} 15. h3 {[%clk 0:02:41]}  a6 {[%clk 0:02:27]} 16. Nce4 {[%clk 0:02:40]}  Be5 {[%clk 0:02:17]} 17. Nxf6+ {[%clk 0:02:39]}  Bxf6 {[%clk 0:02:16]} 18. Qc2 {[%clk 0:02:39]}  O-O {[%clk 0:02:13]} 19. Bd3 {[%clk 0:02:39]}  g6 {[%clk 0:02:10]} 20. Rac1 {[%clk 0:02:37]}  c4 {[%clk 0:02:00]} 21. Be4 {[%clk 0:02:30]}  Rad8 {[%clk 0:01:56]} 22. Rfd1 {[%clk 0:02:28]}  Bg7 {[%clk 0:01:48]} 23. Nf3 {[%clk 0:02:25]}  Bc6 {[%clk 0:01:42]} 24. a4 {[%clk 0:02:23]}  Qb7 {[%clk 0:01:36]} 25. Bxc6 {[%clk 0:02:21]}  Qxc6 {[%clk 0:01:37]} 26. axb5 {[%clk 0:02:21]}  axb5 {[%clk 0:01:37]} 27. b3 {[%clk 0:02:11]}  c3 {[%clk 0:01:37]} 28. b4 {[%clk 0:02:08]}  Qc4 {[%clk 0:01:24]} 29. Nd4 {[%clk 0:02:05]}  Bxd4 {[%clk 0:01:11]} 30. exd4 {[%clk 0:02:06]}  Rxd4 {[%clk 0:01:05]} 31. Re1 {[%clk 0:02:04]}  Rd2 {[%clk 0:00:59]} 32. Qxc3 {[%clk 0:02:04]}  Qxc3 {[%clk 0:00:44]} 33. Rxc3 {[%clk 0:02:02]}  Rfxf2 {[%clk 0:00:45]} 34. Rg3 {[%clk 0:02:00]}  Kf7 {[%clk 0:00:40]} 35. Re5 {[%clk 0:01:59]}  Rf5 {[%clk 0:00:36]} 36. Rge3 {[%clk 0:01:58]}  Rb2 {[%clk 0:00:30]} 37. Rxe6 {[%clk 0:01:57]}  Rxb4 {[%clk 0:00:24]} 38. Re7+ {[%clk 0:01:57]}  Kg8 {[%clk 0:00:23]} 39. Rb7 {[%clk 0:01:56]}  Rf7 {[%clk 0:00:20]} 40. Rb8+ {[%clk 0:01:54]}  Kg7 {[%clk 0:00:20]} 41. Re5 {[%clk 0:01:53]}  Rb1+ {[%clk 0:00:19]} 42. Kh2 {[%clk 0:01:53]}  b4 {[%clk 0:00:18]} 43. Reb5 {[%clk 0:01:51]}  Rf4 {[%clk 0:00:16]} 44. R5b7+ {[%clk 0:01:51]}  Kh6 {[%clk 0:00:16]} 45. Rh8 {[%clk 0:01:50]}  Rb2 {[%clk 0:00:15]} 46. Rhxh7+ {[%clk 0:01:49]}  Kg5 {[%clk 0:00:15]} 47. Rb5+ {[%clk 0:01:47]}  Kf6 {[%clk 0:00:15]} 48. Rc7 {[%clk 0:01:42]}  Rff2 {[%clk 0:00:15]} 49. Rc6+ {[%clk 0:01:42]}  Kg7 {[%clk 0:00:14]} 50. Rg5 {[%clk 0:01:42]}  Rf6 {[%clk 0:00:11]} 51. Rc7+ {[%clk 0:01:37]}  Kh6 {[%clk 0:00:11]} 52. Rg4 {[%clk 0:01:37]}  b3 {[%clk 0:00:10]} 53. Rb7 {[%clk 0:01:37]}  Rc6 {[%clk 0:00:08]} 54. Rg3 {[%clk 0:01:35]}  Rcc2 {[%clk 0:00:08]} 55. h4 {[%clk 0:01:35]}  Ra2 {[%clk 0:00:05]} 56. Rbxb3 {[%clk 0:01:33]}  Rf2 {[%clk 0:00:05]} 57. Rb6 {[%clk 0:01:33]}  Kh5 {[%clk 0:00:04]} 58. Rbxg6 {[%clk 0:01:29]}  Rf4 {[%clk 0:00:04]} 59. R6g5+ {[%clk 0:01:12]}  Kxh4 {[%clk 0:00:03]} 60. Rg8 {[%clk 0:01:12]} 1-0


[Site "https://www.chess.com"]

[Event "Titled Tuesday Blitz July 26 Late 2022"]
[White "Souleidis, Georgios"]
[Black "Lashkin, Jegor"]
[WhiteFideId "4206827"]
[BlackFideId "13907808"]
[WhiteElo "2401"]
[BlackElo "2368"]
[Result "0-1"]
[Round "07"]
[TimeControl "180+1"]
[Date "2022.07.26"]
[WhiteClock "0:00:01"]
[BlackClock "0:00:08"]

1. e4 {[%clk 0:02:57]}  c5 {[%clk 0:02:59]} 2. Be2 {[%clk 0:02:57]}  Nc6 {[%clk 0:02:59]} 3. d3 {[%clk 0:02:57]}  d5 {[%clk 0:02:59]} 4. f4 {[%clk 0:02:58]}  e6 {[%clk 0:02:59]} 5. Nf3 {[%clk 0:02:57]}  Bd6 {[%clk 0:02:59]} 6. O-O {[%clk 0:02:57]}  Nge7 {[%clk 0:02:58]} 7. c3 {[%clk 0:02:57]}  O-O {[%clk 0:02:56]} 8. a3 {[%clk 0:02:57]}  f6 {[%clk 0:02:48]} 9. g3 {[%clk 0:02:57]}  b6 {[%clk 0:02:47]} 10. b4 {[%clk 0:02:57]}  Bb7 {[%clk 0:02:45]} 11. Be3 {[%clk 0:02:54]}  Qd7 {[%clk 0:02:42]} 12. Nbd2 {[%clk 0:02:54]}  Rac8 {[%clk 0:02:35]} 13. Rb1 {[%clk 0:02:54]}  d4 {[%clk 0:02:16]} 14. cxd4 {[%clk 0:02:52]}  Nxd4 {[%clk 0:02:10]} 15. Nxd4 {[%clk 0:02:46]}  cxd4 {[%clk 0:02:10]} 16. Bf2 {[%clk 0:02:47]}  e5 {[%clk 0:01:57]} 17. fxe5 {[%clk 0:02:40]}  Bxe5 {[%clk 0:01:56]} 18. Nc4 {[%clk 0:02:33]}  Bb8 {[%clk 0:01:44]} 19. Bg4 {[%clk 0:02:21]}  f5 {[%clk 0:01:43]} 20. Bh3 {[%clk 0:02:19]}  Qc6 {[%clk 0:01:22]} 21. b5 {[%clk 0:02:19]}  Qh6 {[%clk 0:01:18]} 22. Bg2 {[%clk 0:02:02]}  fxe4 {[%clk 0:01:18]} 23. Bxd4 {[%clk 0:02:00]}  Rfd8 {[%clk 0:01:18]} 24. Be3 {[%clk 0:01:47]}  Qe6 {[%clk 0:01:14]} 25. Nb2 {[%clk 0:00:37]}  Nd5 {[%clk 0:01:07]} 26. Bd4 {[%clk 0:00:21]}  e3 {[%clk 0:00:55]} 27. Qf3 {[%clk 0:00:19]}  e2 {[%clk 0:00:46]} 28. Rfe1 {[%clk 0:00:19]}  Re8 {[%clk 0:00:33]} 29. Nc4 {[%clk 0:00:14]}  Re7 {[%clk 0:00:28]} 30. Qe4 {[%clk 0:00:14]}  Qd7 {[%clk 0:00:26]} 31. Qh4 {[%clk 0:00:10]}  Rce8 {[%clk 0:00:25]} 32. Be4 {[%clk 0:00:10]}  Rxe4 {[%clk 0:00:16]} 33. dxe4 {[%clk 0:00:10]}  Nf4 {[%clk 0:00:14]} 34. Be3 {[%clk 0:00:04]}  Nd3 {[%clk 0:00:13]} 35. Rxe2 {[%clk 0:00:03]}  Rxe4 {[%clk 0:00:13]} 36. Qg5 {[%clk 0:00:02]}  Rxc4 {[%clk 0:00:11]} 37. Rd1 {[%clk 0:00:02]}  h6 {[%clk 0:00:07]} 38. Qg6 {[%clk 0:00:01]}  Be4 {[%clk 0:00:08]} 0-1


[Site "https://www.chess.com"]

[Event "Titled Tuesday Blitz July 26 Late 2022"]
[White "Stalri"]
[Black "Pesotskiy, Mikhail"]
[BlackFideId "34164453"]
[WhiteElo "2367"]
[BlackElo "2010"]
[Result "0-1"]
[Round "07"]
[TimeControl "180+1"]
[Date "2022.07.27"]
[WhiteClock "0:00:01"]
[BlackClock "0:00:21"]

1. d4 {[%clk 0:02:59]}  Nf6 {[%clk 0:02:58]} 2. c4 {[%clk 0:02:59]}  e6 {[%clk 0:02:54]} 3. Nf3 {[%clk 0:02:58]}  Bb4+ {[%clk 0:02:55]} 4. Nbd2 {[%clk 0:02:58]}  b6 {[%clk 0:02:55]} 5. a3 {[%clk 0:02:58]}  Bxd2+ {[%clk 0:02:54]} 6. Qxd2 {[%clk 0:02:58]}  Bb7 {[%clk 0:02:53]} 7. e3 {[%clk 0:02:59]}  a5 {[%clk 0:02:53]} 8. Bd3 {[%clk 0:02:58]}  O-O {[%clk 0:02:52]} 9. O-O {[%clk 0:02:58]}  d6 {[%clk 0:02:42]} 10. b3 {[%clk 0:02:55]}  Nbd7 {[%clk 0:02:42]} 11. Bb2 {[%clk 0:02:53]}  Ne4 {[%clk 0:02:42]} 12. Qc2 {[%clk 0:02:51]}  f5 {[%clk 0:02:43]} 13. d5 {[%clk 0:02:49]}  exd5 {[%clk 0:02:34]} 14. Nd4 {[%clk 0:02:47]}  Ndc5 {[%clk 0:02:33]} 15. cxd5 {[%clk 0:02:42]}  Bxd5 {[%clk 0:02:34]} 16. Bc4 {[%clk 0:02:33]}  Bxc4 {[%clk 0:02:33]} 17. Qxc4+ {[%clk 0:02:33]}  Kh8 {[%clk 0:02:34]} 18. b4 {[%clk 0:02:32]}  Nd2 {[%clk 0:02:34]} 19. Qc2 {[%clk 0:02:28]}  Nxf1 {[%clk 0:02:34]} 20. bxc5 {[%clk 0:02:26]}  Nxh2 {[%clk 0:02:28]} 21. Kxh2 {[%clk 0:02:23]}  dxc5 {[%clk 0:02:21]} 22. Nf3 {[%clk 0:02:14]}  Qe7 {[%clk 0:02:09]} 23. Qc4 {[%clk 0:01:59]}  Rad8 {[%clk 0:02:00]} 24. Ne5 {[%clk 0:01:55]}  f4 {[%clk 0:01:26]} 25. exf4 {[%clk 0:00:40]}  Rd2 {[%clk 0:01:11]} 26. Kg3 {[%clk 0:00:33]}  Qf6 {[%clk 0:00:48]} 27. Bc3 {[%clk 0:00:25]}  Rc2 {[%clk 0:00:33]} 28. Rh1 {[%clk 0:00:02]}  Rxc3+ {[%clk 0:00:27]} 29. Qxc3 {[%clk 0:00:03]}  Qxf4+ {[%clk 0:00:27]} 30. Kh3 {[%clk 0:00:04]}  Qh6+ {[%clk 0:00:28]} 31. Kg3 {[%clk 0:00:04]}  Qxh1 {[%clk 0:00:29]} 32. Qd3 {[%clk 0:00:03]}  Qh5 {[%clk 0:00:27]} 33. Qd5 {[%clk 0:00:03]}  Qf5 {[%clk 0:00:22]} 34. f4 {[%clk 0:00:02]}  Qxf4+ {[%clk 0:00:22]} 35. Kh3 {[%clk 0:00:03]}  Qh6+ {[%clk 0:00:17]} 36. Kg3 {[%clk 0:00:02]}  Qd6 {[%clk 0:00:18]} 37. Qe4 {[%clk 0:00:01]}  Re8 {[%clk 0:00:18]} 38. Kh3 {[%clk 0:00:01]}  Qxe5 {[%clk 0:00:18]} 39. Qc6 {[%clk 0:00:01]}  Qe3+ {[%clk 0:00:19]} 40. Kh2 {[%clk 0:00:01]}  Qe4 {[%clk 0:00:20]} 41. Qd7 {[%clk 0:00:01]}  Qe5+ {[%clk 0:00:21]} 42. Kg1 {[%clk 0:00:01]}  Qe6 {[%clk 0:00:21]} 0-1


[Site "https://www.chess.com"]

[Event "Titled Tuesday Blitz July 26 Late 2022"]
[White "Suder, Jakub"]
[Black "Averjanov, Alexey"]
[WhiteFideId "1195310"]
[BlackFideId "14109867"]
[WhiteElo "2071"]
[BlackElo "2621"]
[Result "1-0"]
[Round "07"]
[TimeControl "180+1"]
[Date "2022.07.26"]
[WhiteClock "0:01:40"]
[BlackClock "0:00:31"]

1. d4 {[%clk 0:03:00]}  d5 {[%clk 0:02:58]} 2. c4 {[%clk 0:03:01]}  dxc4 {[%clk 0:02:57]} 3. e4 {[%clk 0:03:01]}  Nf6 {[%clk 0:02:56]} 4. e5 {[%clk 0:03:01]}  Nd5 {[%clk 0:02:56]} 5. Bxc4 {[%clk 0:03:01]}  Nb6 {[%clk 0:02:56]} 6. Bd3 {[%clk 0:03:01]}  Nc6 {[%clk 0:02:56]} 7. Ne2 {[%clk 0:03:00]}  Bg4 {[%clk 0:02:56]} 8. f3 {[%clk 0:03:01]}  Bh5 {[%clk 0:02:54]} 9. Be3 {[%clk 0:03:01]}  Nd5 {[%clk 0:02:53]} 10. Bf2 {[%clk 0:02:59]}  e6 {[%clk 0:02:53]} 11. Nbc3 {[%clk 0:02:56]}  Ncb4 {[%clk 0:02:48]} 12. Be4 {[%clk 0:02:54]}  Be7 {[%clk 0:02:47]} 13. O-O {[%clk 0:02:52]}  c6 {[%clk 0:02:46]} 14. a3 {[%clk 0:02:50]}  Nxc3 {[%clk 0:02:46]} 15. bxc3 {[%clk 0:02:46]}  Nd5 {[%clk 0:02:46]} 16. c4 {[%clk 0:02:46]}  Nb6 {[%clk 0:02:46]} 17. Qb3 {[%clk 0:02:42]}  Qc7 {[%clk 0:02:44]} 18. Nf4 {[%clk 0:02:38]}  Bg6 {[%clk 0:02:44]} 19. Nxg6 {[%clk 0:02:39]}  hxg6 {[%clk 0:02:44]} 20. f4 {[%clk 0:02:39]}  O-O {[%clk 0:02:43]} 21. Rfd1 {[%clk 0:02:35]}  Rfd8 {[%clk 0:02:43]} 22. a4 {[%clk 0:02:31]}  a5 {[%clk 0:02:30]} 23. Rab1 {[%clk 0:02:30]}  Bb4 {[%clk 0:02:30]} 24. h4 {[%clk 0:02:31]}  Rd7 {[%clk 0:02:25]} 25. h5 {[%clk 0:02:31]}  gxh5 {[%clk 0:02:25]} 26. Qh3 {[%clk 0:02:31]}  g6 {[%clk 0:02:24]} 27. g4 {[%clk 0:02:25]}  hxg4 {[%clk 0:02:25]} 28. Qxg4 {[%clk 0:02:21]}  Kg7 {[%clk 0:02:25]} 29. Bh4 {[%clk 0:02:21]}  Be7 {[%clk 0:02:22]} 30. Kg2 {[%clk 0:02:16]}  Rh8 {[%clk 0:02:19]} 31. Rh1 {[%clk 0:02:08]}  Bxh4 {[%clk 0:01:27]} 32. Rxh4 {[%clk 0:02:08]}  Nxc4 {[%clk 0:01:23]} 33. Rxh8 {[%clk 0:01:45]}  Kxh8 {[%clk 0:01:24]} 34. Qh4+ {[%clk 0:01:42]}  Kg8 {[%clk 0:01:22]} 35. Rh1 {[%clk 0:01:43]}  Ne3+ {[%clk 0:01:17]} 36. Kf3 {[%clk 0:01:40]}  Kf8 {[%clk 0:00:32]} 37. Qh8+ {[%clk 0:01:38]}  Ke7 {[%clk 0:00:31]} 38. Qf6+ {[%clk 0:01:39]}  Ke8 {[%clk 0:00:31]} 39. Rh8# {[%clk 0:01:40]} 1-0


[Site "https://www.chess.com"]

[Event "Titled Tuesday Blitz July 26 Late 2022"]
[White "Thiel, Thomas"]
[Black "Winkels, Marcel"]
[WhiteFideId "4615964"]
[BlackFideId "1003887"]
[WhiteElo "2288"]
[BlackElo "1900"]
[Result "0-1"]
[Round "07"]
[TimeControl "180+1"]
[Date "2022.07.27"]
[WhiteClock "0:00:07"]
[BlackClock "0:00:02"]

1. e4 {[%clk 0:03:00]}  c5 {[%clk 0:02:57]} 2. Nc3 {[%clk 0:03:00]}  d6 {[%clk 0:02:56]} 3. f4 {[%clk 0:02:58]}  Nc6 {[%clk 0:02:57]} 4. Nf3 {[%clk 0:02:57]}  g6 {[%clk 0:02:57]} 5. Bc4 {[%clk 0:02:55]}  Bg7 {[%clk 0:02:57]} 6. O-O {[%clk 0:02:55]}  e6 {[%clk 0:02:57]} 7. f5 {[%clk 0:02:55]}  Nge7 {[%clk 0:02:41]} 8. Qe1 {[%clk 0:02:53]}  d5 {[%clk 0:02:35]} 9. exd5 {[%clk 0:02:30]}  exd5 {[%clk 0:02:26]} 10. Nxd5 {[%clk 0:02:29]}  Bxf5 {[%clk 0:02:19]} 11. d3 {[%clk 0:02:08]}  O-O {[%clk 0:02:17]} 12. Nxe7+ {[%clk 0:02:07]}  Qxe7 {[%clk 0:02:11]} 13. Qg3 {[%clk 0:02:03]}  Rad8 {[%clk 0:01:46]} 14. Bg5 {[%clk 0:01:49]}  Bf6 {[%clk 0:01:39]} 15. Bxf6 {[%clk 0:01:42]}  Qxf6 {[%clk 0:01:38]} 16. Nh4 {[%clk 0:01:33]}  Qd4+ {[%clk 0:01:32]} 17. Kh1 {[%clk 0:01:30]}  Be6 {[%clk 0:01:30]} 18. c3 {[%clk 0:01:28]}  Qd6 {[%clk 0:01:19]} 19. Qg5 {[%clk 0:01:12]}  Bxc4 {[%clk 0:01:13]} 20. dxc4 {[%clk 0:01:13]}  Qe5 {[%clk 0:01:10]} 21. Qh6 {[%clk 0:01:11]}  Qg7 {[%clk 0:01:09]} 22. Qe3 {[%clk 0:01:07]}  b6 {[%clk 0:00:59]} 23. Qe4 {[%clk 0:01:00]}  Ne5 {[%clk 0:00:56]} 24. Rae1 {[%clk 0:00:57]}  Rfe8 {[%clk 0:00:54]} 25. Qb7 {[%clk 0:00:48]}  Nd3 {[%clk 0:00:42]} 26. Rxe8+ {[%clk 0:00:45]}  Rxe8 {[%clk 0:00:42]} 27. Qd7 {[%clk 0:00:29]}  Re3 {[%clk 0:00:25]} 28. Nf5 {[%clk 0:00:29]}  gxf5 {[%clk 0:00:19]} 29. Qd8+ {[%clk 0:00:29]}  Qf8 {[%clk 0:00:18]} 30. Qg5+ {[%clk 0:00:29]}  Qg7 {[%clk 0:00:12]} 31. Qxe3 {[%clk 0:00:30]}  Nxb2 {[%clk 0:00:11]} 32. Qe8+ {[%clk 0:00:29]}  Qf8 {[%clk 0:00:10]} 33. Qb5 {[%clk 0:00:23]}  Nd3 {[%clk 0:00:08]} 34. Rf3 {[%clk 0:00:21]}  Qe7 {[%clk 0:00:08]} 35. Rg3+ {[%clk 0:00:18]}  Kf8 {[%clk 0:00:06]} 36. h3 {[%clk 0:00:18]}  Qe1+ {[%clk 0:00:05]} 37. Kh2 {[%clk 0:00:18]}  Nf2 {[%clk 0:00:05]} 38. Rf3 {[%clk 0:00:14]}  Qe5+ {[%clk 0:00:04]} 39. g3 {[%clk 0:00:13]}  Qe2 {[%clk 0:00:03]} 40. Rxf2 {[%clk 0:00:06]}  Qxf2+ {[%clk 0:00:02]} 41. Kh1 {[%clk 0:00:07]}  Qxg3 {[%clk 0:00:02]} 0-1


[Site "https://www.chess.com"]

[Event "Titled Tuesday Blitz July 26 Late 2022"]
[White "Urbina Perez, Juan Antonio"]
[Black "Melaugh, Shane"]
[WhiteFideId "2217368"]
[BlackFideId "2509580"]
[WhiteElo "2192"]
[BlackElo "1938"]
[Result "0-1"]
[Round "07"]
[TimeControl "180+1"]
[Date "2022.07.27"]
[WhiteClock "0:00:16"]
[BlackClock "0:00:09"]

1. d4 {[%clk 0:03:00]}  e6 {[%clk 0:02:59]} 2. Nf3 {[%clk 0:03:01]}  f5 {[%clk 0:02:59]} 3. Nc3 {[%clk 0:03:00]}  Nf6 {[%clk 0:02:55]} 4. Bg5 {[%clk 0:03:00]}  d5 {[%clk 0:02:56]} 5. Qd2 {[%clk 0:02:56]}  c6 {[%clk 0:02:52]} 6. Bxf6 {[%clk 0:02:56]}  Qxf6 {[%clk 0:02:51]} 7. O-O-O {[%clk 0:02:56]}  Bb4 {[%clk 0:02:47]} 8. g4 {[%clk 0:02:55]}  O-O {[%clk 0:02:41]} 9. g5 {[%clk 0:02:54]}  Qe7 {[%clk 0:02:39]} 10. Ne5 {[%clk 0:02:54]}  Nd7 {[%clk 0:02:29]} 11. Nxd7 {[%clk 0:02:53]}  Bxd7 {[%clk 0:02:29]} 12. f4 {[%clk 0:02:54]}  a5 {[%clk 0:02:27]} 13. Qd3 {[%clk 0:02:53]}  Be8 {[%clk 0:02:08]} 14. e3 {[%clk 0:02:51]}  Bh5 {[%clk 0:02:08]} 15. Be2 {[%clk 0:02:51]}  Bxe2 {[%clk 0:02:01]} 16. Nxe2 {[%clk 0:02:52]}  a4 {[%clk 0:02:01]} 17. Ng1 {[%clk 0:02:46]}  Ra6 {[%clk 0:01:59]} 18. Nf3 {[%clk 0:02:44]}  Bd6 {[%clk 0:01:58]} 19. Ne5 {[%clk 0:02:39]}  Bxe5 {[%clk 0:01:58]} 20. dxe5 {[%clk 0:02:40]}  b5 {[%clk 0:01:48]} 21. h4 {[%clk 0:02:37]}  a3 {[%clk 0:01:34]} 22. b3 {[%clk 0:02:36]}  Rb6 {[%clk 0:01:31]} 23. h5 {[%clk 0:02:36]}  c5 {[%clk 0:01:32]} 24. h6 {[%clk 0:02:36]}  g6 {[%clk 0:01:32]} 25. Kb1 {[%clk 0:02:35]}  Rc8 {[%clk 0:01:29]} 26. Rc1 {[%clk 0:02:28]}  c4 {[%clk 0:01:00]} 27. Qd4 {[%clk 0:02:26]}  Rbc6 {[%clk 0:00:58]} 28. Rhd1 {[%clk 0:02:18]}  Qc7 {[%clk 0:00:58]} 29. Qd2 {[%clk 0:02:12]}  Kf7 {[%clk 0:00:38]} 30. bxc4 {[%clk 0:02:01]}  Rxc4 {[%clk 0:00:37]} 31. c3 {[%clk 0:02:01]}  Qb6 {[%clk 0:00:31]} 32. Ka1 {[%clk 0:01:56]}  Qa5 {[%clk 0:00:31]} 33. Kb1 {[%clk 0:01:25]}  Ke7 {[%clk 0:00:27]} 34. Rc2 {[%clk 0:01:19]}  Rxc3 {[%clk 0:00:26]} 35. Qe1 {[%clk 0:00:57]}  b4 {[%clk 0:00:18]} 36. Rdc1 {[%clk 0:00:54]}  Rxc2 {[%clk 0:00:15]} 37. Rxc2 {[%clk 0:00:55]}  Rxc2 {[%clk 0:00:15]} 38. Kxc2 {[%clk 0:00:56]}  Qa4+ {[%clk 0:00:13]} 39. Kb1 {[%clk 0:00:48]}  b3 {[%clk 0:00:13]} 40. Qc3 {[%clk 0:00:45]}  bxa2+ {[%clk 0:00:13]} 41. Kxa2 {[%clk 0:00:44]}  Kd7 {[%clk 0:00:11]} 42. Qc5 {[%clk 0:00:42]}  Qa6 {[%clk 0:00:07]} 43. Qf8 {[%clk 0:00:39]}  Qe2+ {[%clk 0:00:06]} 44. Kxa3 {[%clk 0:00:40]}  Qxe3+ {[%clk 0:00:07]} 45. Ka4 {[%clk 0:00:37]}  Qxf4+ {[%clk 0:00:05]} 46. Ka5 {[%clk 0:00:35]}  Qd2+ {[%clk 0:00:04]} 47. Ka6 {[%clk 0:00:34]}  Qa2+ {[%clk 0:00:03]} 48. Kb5 {[%clk 0:00:33]}  Qb3+ {[%clk 0:00:04]} 49. Ka5 {[%clk 0:00:32]}  Qc3+ {[%clk 0:00:04]} 50. Kb5 {[%clk 0:00:32]}  Qc4+ {[%clk 0:00:05]} 51. Ka5 {[%clk 0:00:30]}  Qc3+ {[%clk 0:00:05]} 52. Kb5 {[%clk 0:00:30]}  Qb2+ {[%clk 0:00:05]} 53. Ka5 {[%clk 0:00:30]}  Qa1+ {[%clk 0:00:06]} 54. Kb5 {[%clk 0:00:30]}  Qb1+ {[%clk 0:00:06]} 55. Ka5 {[%clk 0:00:31]}  Qa1+ {[%clk 0:00:07]} 56. Kb5 {[%clk 0:00:31]}  Qxe5 {[%clk 0:00:07]} 57. Qf7+ {[%clk 0:00:28]}  Kd6 {[%clk 0:00:08]} 58. Qf8+ {[%clk 0:00:25]}  Kd7 {[%clk 0:00:07]} 59. Qf7+ {[%clk 0:00:25]}  Kc8 {[%clk 0:00:07]} 60. Qxh7 {[%clk 0:00:20]}  d4+ {[%clk 0:00:07]} 61. Kc4 {[%clk 0:00:19]}  Qd5+ {[%clk 0:00:08]} 62. Kd3 {[%clk 0:00:18]}  Qe4+ {[%clk 0:00:09]} 63. Kd2 {[%clk 0:00:17]}  Qe3+ {[%clk 0:00:09]} 64. Kd1 {[%clk 0:00:18]}  d3 {[%clk 0:00:09]} 65. Qh8+ {[%clk 0:00:17]}  Kd7 {[%clk 0:00:09]} 66. Qg7+ {[%clk 0:00:18]}  Kd6 {[%clk 0:00:09]} 67. Qf8+ {[%clk 0:00:18]}  Ke5 {[%clk 0:00:09]} 68. Qb8+ {[%clk 0:00:18]}  Ke4 {[%clk 0:00:09]} 69. Qb7+ {[%clk 0:00:18]}  Kf4 {[%clk 0:00:08]} 70. Qc7+ {[%clk 0:00:18]}  e5 {[%clk 0:00:09]} 71. h7 {[%clk 0:00:17]}  Qe2+ {[%clk 0:00:09]} 72. Kc1 {[%clk 0:00:17]}  d2+ {[%clk 0:00:10]} 73. Kb2 {[%clk 0:00:16]}  d1=Q+ {[%clk 0:00:10]} 74. Ka3 {[%clk 0:00:16]}  Qed3+ {[%clk 0:00:10]} 75. Kb4 {[%clk 0:00:16]}  Q1b3+ {[%clk 0:00:10]} 76. Ka5 {[%clk 0:00:16]}  Qdb5# {[%clk 0:00:09]} 0-1


[Site "https://www.chess.com"]